bitfinex/quotes_BTCUSD_20250118
["timestamp","ask_amount","ask_price","bid_price","bid_amount"]
[1737209967717,0.00089148,104340.0,104330.0,0.66253026]
[1737209968120,4.8e-07,104340.0,104330.0,0.66253026]
[1737209968478,4.8e-07,104340.0,104330.0,0.91680702]
[1737209968821,4.8e-07,104340.0,104330.0,0.94541108]
[1737209969379,4.8e-07,104340.0,104330.0,1.36892643]
[1737209969807,0.0004276,104360.0,104350.0,0.345831]
[1737209970003,0.00047791,104360.0,104350.0,0.45071181]
[1737209970688,0.00047791,104360.0,104350.0,0.44507181]
[1737209971686,0.00047791,104360.0,104350.0,5.25307106]
[1737209972142,0.07963282,104370.0,104360.0,0.245822]
[1737209972319,0.07963282,104370.0,104360.0,0.34506281]
[1737209972486,0.07963282,104370.0,104360.0,0.245822]
[1737209974720,0.07963282,104370.0,104360.0,0.095822]
[1737209974940,0.17407327,104370.0,104360.0,0.095822]
[1737209975142,0.07963282,104370.0,104360.0,0.095822]
[1737209976886,0.26988527,104370.0,104360.0,0.095822]
[1737209977102,0.17407327,104370.0,104360.0,0.095822]
[1737209977339,0.07963282,104370.0,104360.0,0.095822]
[1737209978453,0.27084554,104370.0,104360.0,0.095822]
[1737209978659,0.26988527,104370.0,104350.0,4.383035]
[1737209978858,0.26988527,104370.0,104360.0,0.095822]
[1737209979495,0.31738527,104370.0,104360.0,3.999739]
[1737209979697,0.31738527,104370.0,104360.0,4.095561]
[1737209979902,0.41662608,104370.0,104360.0,3.999739]
[1737209980310,0.51662608,104370.0,104360.0,3.999739]
[1737209980523,0.68962608,104370.0,104360.0,3.871639]
[1737209980728,0.58962608,104370.0,104360.0,3.871639]
[1737209981397,0.68406653,104370.0,104360.0,3.871639]
[1737209981565,0.58962608,104370.0,104360.0,3.871639]
[1737209982004,0.78406653,104370.0,104360.0,3.793539]
[1737209983778,0.81391856,104370.0,104360.0,3.793539]
[1737209986314,0.81434626,104370.0,104360.0,3.793539]
[1737209986627,0.71990581,104370.0,104360.0,3.793539]
[1737209988356,0.72558581,104370.0,104360.0,3.793539]
[1737209990085,0.67789326,104370.0,104360.0,3.793539]
[1737209990294,0.57789326,104370.0,104360.0,3.793539]
[1737209990931,0.67789326,104370.0,104360.0,3.793539]
[1737209993625,0.70089326,104370.0,104360.0,3.793539]
[1737209993831,0.79533371,104370.0,104360.0,3.793539]
[1737209994036,0.70089326,104370.0,104360.0,3.793539]
[1737209995579,0.89533371,104370.0,104360.0,3.793539]
[1737209997288,0.89533371,104370.0,104360.0,3.79443717]
[1737209999157,0.89533371,104370.0,104360.0,3.79433717]
[1737209999844,0.80089326,104370.0,104360.0,3.79433717]
[1737210001211,0.89533371,104370.0,104360.0,3.79433717]
[1737210001913,0.58345281,104370.0,104360.0,3.79433717]
[1737210002131,0.45076044,104370.0,104360.0,3.79433717]
[1737210002956,0.20151963,104370.0,104360.0,3.89015917]
[1737210003161,0.19068015,104370.0,104360.0,3.89015917]
[1737210003373,0.19164042,104370.0,104360.0,3.89015917]
[1737210004252,0.19164042,104370.0,104360.0,3.79433717]
[1737210004569,0.19164042,104370.0,104360.0,3.89015917]
[1737210006228,0.19164042,104370.0,104360.0,3.79433717]
[1737210013246,0.09582842,104370.0,104360.0,3.89015917]
[1737210013378,0.19068015,104370.0,104360.0,3.79433717]
[1737210013909,0.19164042,104370.0,104360.0,3.79433717]
[1737210015342,0.29164042,104370.0,104360.0,3.79433717]
[1737210015517,0.29068015,104370.0,104360.0,3.79433717]
[1737210018107,0.29058015,104370.0,104360.0,3.79433717]
[1737210018273,0.1003277,104370.0,104360.0,3.89015917]
[1737210018573,0.1003277,104370.0,104360.0,3.97035917]
[1737210019167,0.19476815,104370.0,104360.0,3.97035917]
[1737210019537,0.1003277,104370.0,104360.0,3.97035917]
[1737210019780,0.1003277,104370.0,104360.0,4.18112582]
[1737210019981,0.19476815,104370.0,104360.0,4.4940274]
[1737210020462,0.29058015,104370.0,104360.0,4.4138274]
[1737210021243,0.29058015,104370.0,104360.0,3.9744449]
[1737210021658,0.29058015,104370.0,104360.0,3.8786229]
[1737210022354,0.29058015,104370.0,104360.0,3.79433717]
[1737210025118,0.38982096,104370.0,104360.0,3.79433717]
[1737210025316,0.46982096,104370.0,104360.0,3.79433717]
[1737210025491,0.51692096,104370.0,104360.0,3.79433717]
[1737210025913,0.61692096,104370.0,104360.0,3.79433717]
[1737210029970,0.32186815,104370.0,104360.0,3.79433717]
[1737210030175,0.25247947,104370.0,104360.0,3.79433717]
[1737210030558,0.15803902,104370.0,104360.0,3.79433717]
[1737210030764,0.1003277,104370.0,104360.0,3.89015917]
[1737210031015,0.19476815,104370.0,104360.0,3.89015917]
[1737210031216,0.1003277,104370.0,104360.0,3.89015917]
[1737210031424,0.19572842,104370.0,104360.0,3.89015917]
[1737210032083,0.19572842,104370.0,104360.0,3.79433717]
[1737210032282,0.10128797,104370.0,104360.0,3.89015917]
[1737210032625,0.19572842,104370.0,104360.0,3.79433717]
[1737210033263,0.37424042,104370.0,104360.0,3.79433717]
[1737210033440,0.37328015,104370.0,104360.0,3.79433717]
[1737210034984,0.37328015,104370.0,104360.0,3.89433717]
[1737210037826,0.38826783,104370.0,104360.0,3.89433717]
[1737210038203,0.38816783,104370.0,104360.0,3.89433717]
[1737210038608,0.48740864,104370.0,104360.0,3.89433717]
[1737210038951,0.58740864,104370.0,104360.0,3.89433717]
[1737210040943,0.57242096,104370.0,104360.0,3.89433717]
[1737210042333,0.47242096,104370.0,104360.0,3.89433717]
[1737210042621,0.57242096,104370.0,104360.0,3.89433717]
[1737210042824,0.98830222,104370.0,104360.0,3.89433717]
[1737210043043,1.19394222,104370.0,104360.0,3.45740931]
[1737210043197,0.95164289,104370.0,104360.0,2.51182964]
[1737210043395,0.95164289,104370.0,104360.0,2.24068019]
[1737210043563,0.81974289,104370.0,104360.0,1.9671541]
[1737210043755,0.92720289,104370.0,104360.0,0.27658607]
[1737210043956,0.92720289,104370.0,104340.0,0.5902094]
[1737210043957,0.245831,104350.0,104340.0,0.5902094]
[1737210044283,0.53209536,104350.0,104340.0,0.59025971]
[1737210044490,0.53209536,104350.0,104340.0,5.031e-05]
[1737210045921,0.74703299,104350.0,104340.0,5.031e-05]
[1737210047079,0.61807041,104350.0,104340.0,5.031e-05]
[1737210047605,0.6373312,104350.0,104340.0,5.031e-05]
[1737210048156,0.5677481,104350.0,104340.0,5.031e-05]
[1737210048491,0.58274265,104350.0,104340.0,5.031e-05]
[1737210049139,0.68838265,104350.0,104340.0,5.031e-05]
[1737210049308,0.5024076,104350.0,104340.0,5.031e-05]
[1737210049464,0.6024076,104350.0,104340.0,5.031e-05]
[1737210049897,0.70164841,104350.0,104340.0,5.031e-05]
[1737210050294,0.4794076,104350.0,104340.0,5.031e-05]
[1737210050503,0.46014681,104350.0,104340.0,5.031e-05]
[1737210051954,0.45450681,104350.0,104340.0,0.08185031]
[1737210052592,0.55450681,104350.0,104340.0,0.08185031]
[1737210052798,0.40450681,104350.0,104340.0,0.13075031]
[1737210053015,0.38951226,104350.0,104340.0,0.13075031]
[1737210053450,0.39968827,104350.0,104340.0,0.13075031]
[1737210054852,0.39968827,104350.0,104340.0,0.13164932]
[1737210056012,0.49968827,104350.0,104340.0,0.13164932]
[1737210061077,0.49968827,104350.0,104340.0,0.12764932]
[1737210062164,0.39968827,104350.0,104340.0,0.12764932]
[1737210062780,0.19444045,104350.0,104340.0,0.12764932]
[1737210063127,0.39123172,104350.0,104340.0,0.12764932]
[1737210063331,0.39027145,104350.0,104340.0,0.12764932]
[1737210064010,0.29027145,104350.0,104340.0,0.12764932]
[1737210064211,0.39027145,104350.0,104340.0,0.12764932]
[1737210064591,0.29027145,104350.0,104340.0,0.12764932]
[1737210065804,0.48951226,104350.0,104340.0,0.12764932]
[1737210066010,0.5760371,104350.0,104340.0,0.07874932]
[1737210066426,0.48994046,104350.0,104340.0,0.07874932]
[1737210067040,0.48994046,104350.0,104340.0,0.12614932]
[1737210068486,0.81264046,104350.0,104340.0,0.12614932]
[1737210068684,0.93564046,104350.0,104340.0,0.12614932]
[1737210069049,0.98564046,104350.0,104340.0,0.00089901]
[1737210069266,0.98888127,104350.0,104340.0,0.00089901]
[1737210069438,0.98564046,104350.0,104340.0,0.00089901]
[1737210069662,0.88564046,104350.0,104340.0,0.00089901]
[1737210072178,0.86294046,104350.0,104340.0,0.00089901]
[1737210073541,0.95738091,104350.0,104340.0,0.00089901]
[1737210073713,1.04335596,104350.0,104340.0,0.00089901]
[1737210073926,1.04815632,104350.0,104340.0,0.00089901]
[1737210075444,1.06315122,104350.0,104340.0,0.00089901]
[1737210075808,1.15759167,104350.0,104340.0,0.00089901]
[1737210076002,1.06315122,104350.0,104340.0,0.00089901]
[1737210076512,1.3640639,104350.0,104340.0,0.00089901]
[1737210076729,1.26482309,104350.0,104340.0,0.00089901]
[1737210076911,1.28428336,104350.0,104340.0,0.00089901]
[1737210077545,1.11233326,104350.0,104340.0,0.00089901]
[1737210079399,0.98337068,104350.0,104340.0,0.00089901]
[1737210080792,0.98901068,104350.0,104340.0,0.07839901]
[1737210081010,1.08825149,104350.0,104340.0,0.07839901]
[1737210081320,1.08261149,104350.0,104340.0,0.07839901]
[1737210081523,1.08825149,104350.0,104340.0,0.07839901]
[1737210082354,1.08825149,104350.0,104340.0,0.00089901]
[1737210085081,1.21721407,104350.0,104340.0,0.00089901]
[1737210086469,1.30318912,104350.0,104340.0,0.00089901]
[1737210087887,1.51812675,104350.0,104340.0,0.00089901]
[1737210089070,1.38916417,104350.0,104340.0,0.00089901]
[1737210093550,1.28992336,104350.0,104340.0,0.00089901]
[1737210100109,1.38436381,104350.0,104340.0,0.00089901]
[1737210101425,1.38836381,104350.0,104340.0,1e-08]
[1737210101597,0.368849,104330.0,104320.0,0.0474]
[1737210101799,0.75621152,104330.0,104320.0,0.0479034]
[1737210101949,0.65621152,104330.0,104320.0,0.0479034]
[1737210102305,0.55697071,104330.0,104320.0,0.0479034]
[1737210103871,0.77196139,104330.0,104320.0,0.0479034]
[1737210104563,0.77196139,104330.0,104320.0,0.1237034]
[1737210104743,0.77760139,104330.0,104320.0,0.1237034]
[1737210107497,0.79661547,104330.0,104320.0,0.1237034]
[1737210108486,0.8116119,104330.0,104320.0,0.1237034]
[1737210109304,0.82156627,104330.0,104320.0,0.1237034]
[1737210109508,0.87021648,104330.0,104320.0,0.1237034]
[1737210109869,0.87021648,104330.0,104320.0,0.0005034]
[1737210110111,0.87021648,104330.0,104320.0,4e-07]
[1737210110313,0.323,104320.0,104310.0,0.0776]
[1737210110624,0.80622052,104320.0,104310.0,0.07775108]
[1737210111461,0.70697971,104320.0,104310.0,0.07775108]
[1737210111975,0.40697971,104320.0,104310.0,0.07775108]
[1737210112210,0.79386744,104320.0,104310.0,0.07775108]
[1737210114299,0.79386744,104320.0,104310.0,0.0786503]
[1737210115687,0.87086744,104320.0,104310.0,0.0786503]
[1737210115905,0.87650744,104320.0,104310.0,0.1256503]
[1737210116100,0.89950744,104320.0,104310.0,0.1256503]
[1737210116808,0.99950744,104320.0,104310.0,0.1256503]
[1737210117599,0.74161688,104320.0,104310.0,0.1256503]
[1737210117784,0.82761499,104320.0,104310.0,0.1256503]
[1737210118942,0.70453454,104320.0,104310.0,0.1256503]
[1737210119115,0.60453454,104320.0,104310.0,0.1256503]
[1737210120078,0.47553737,104320.0,104310.0,0.1256503]
[1737210121772,0.38953926,104320.0,104310.0,0.1256503]
[1737210126959,0.38996756,104320.0,104310.0,0.1256503]
[1737210128683,0.48440801,104320.0,104310.0,0.1256503]
[1737210128890,0.75740801,104320.0,104310.0,0.1256503]
[1737210129242,0.66296756,104320.0,104310.0,0.1256503]
[1737210129437,0.75740801,104320.0,104310.0,0.1256503]
[1737210129663,0.85740801,104320.0,104310.0,0.1256503]
[1737210130603,0.94340612,104320.0,104310.0,0.1256503]
[1737210133132,0.74896567,104320.0,104310.0,0.1256503]
[1737210133333,0.84896567,104320.0,104310.0,0.1256503]
[1737210133496,0.94340612,104320.0,104310.0,0.1256503]
[1737210134551,0.86842289,104320.0,104310.0,0.1256503]
[1737210134902,0.87686523,104320.0,104310.0,0.1256503]
[1737210137342,0.78242478,104320.0,104310.0,0.1256503]
[1737210137660,0.87686523,104320.0,104310.0,0.1256503]
[1737210138930,0.77686523,104320.0,104310.0,0.1256503]
[1737210139137,0.87686523,104320.0,104310.0,0.1256503]
[1737210139331,0.77686523,104320.0,104310.0,0.1256503]
[1737210139736,0.68242478,104320.0,104310.0,0.1256503]
[1737210139940,0.77686523,104320.0,104310.0,0.1256503]
[1737210140339,0.68242478,104320.0,104310.0,0.1256503]
[1737210140750,0.78242478,104320.0,104310.0,0.1256503]
[1737210140891,0.68242478,104320.0,104310.0,0.1256503]
[1737210141104,0.78242478,104320.0,104310.0,0.1256503]
[1737210141486,0.87686523,104320.0,104310.0,0.1256503]
[1737210142534,0.96286334,104320.0,104310.0,0.1256503]
[1737210143248,0.96210415,104320.0,104310.0,0.1256503]
[1737210143860,0.96210415,104320.0,104310.0,0.0010503]
[1737210144239,1.09110132,104320.0,104310.0,0.0010503]
[1737210144442,1.29110132,104320.0,104310.0,0.0010503]
[1737210146141,1.59199094,104320.0,104310.0,0.0010503]
[1737210147377,1.54216878,104320.0,104310.0,0.0010503]
[1737210147944,1.54089862,104320.0,104310.0,0.0010503]
[1737210150352,1.44165781,104320.0,104310.0,0.0010503]
[1737210151718,1.42665781,104320.0,104310.0,0.0010503]
[1737210153007,1.21172018,104320.0,104310.0,0.0010503]
[1737210153225,0.94219081,104320.0,104310.0,0.0833503]
[1737210153429,1.01736018,104320.0,104310.0,0.0833503]
[1737210153811,0.91919081,104320.0,104310.0,0.1299503]
[1737210154019,0.92483081,104320.0,104310.0,0.1299503]
[1737210154365,1.02483081,104320.0,104310.0,0.1299503]
[1737210154669,0.66944309,104320.0,104310.0,0.1299503]
[1737210155454,0.86705739,104320.0,104310.0,0.1299503]
[1737210156173,0.73806022,104320.0,104310.0,0.1299503]
[1737210156537,0.93220389,104320.0,104310.0,0.1299503]
[1737210157171,0.83806022,104320.0,104310.0,0.1299503]
[1737210158537,0.61506022,104320.0,104310.0,0.1299503]
[1737210162384,0.45942022,104320.0,104310.0,0.1299503]
[1737210163370,0.1864479,104320.0,104310.0,0.2258183]
[1737210163760,0.1004283,104320.0,104310.0,0.2258183]
[1737210164589,0.1004283,104320.0,104310.0,0.1299503]
[1737210164795,0.1962863,104320.0,104310.0,0.1299503]
[1737210164968,0.29139024,104320.0,104310.0,0.1299503]
[1737210165149,0.29042997,104320.0,104310.0,0.1299503]
[1737210166199,0.1962863,104320.0,104310.0,0.1299503]
[1737210166432,0.19724657,104320.0,104310.0,0.1299503]
[1737210166633,0.29042997,104320.0,104310.0,0.1299503]
[1737210167531,0.1004283,104320.0,104310.0,0.1299503]
[1737210167731,0.1004283,104320.0,104310.0,0.2258183]
[1737210170314,0.0504283,104320.0,104310.0,0.2258183]
[1737210170569,0.0004282,104330.0,104320.0,0.224258]
[1737210171208,0.0004282,104330.0,104320.0,0.32349881]
[1737210171425,0.38739507,104350.0,104340.0,0.22424]
[1737210172782,0.0004282,104350.0,104340.0,0.22424]
[1737210180369,0.0004282,104350.0,104340.0,0.32348081]
[1737210182368,0.0004282,104350.0,104340.0,0.56762448]
[1737210182918,0.0004282,104350.0,104340.0,0.47348081]
[1737210183491,0.0004282,104350.0,104340.0,0.49219982]
[1737210186141,0.0004282,104350.0,104340.0,0.58634349]
[1737210186283,0.0004282,104350.0,104340.0,0.49219982]
[1737210187316,0.0004282,104350.0,104340.0,0.58634349]
[1737210187742,0.0002277,104370.0,104360.0,0.226822]
[1737210187922,0.0002277,104370.0,104360.0,0.32606281]
[1737210188982,0.0007311,104370.0,104360.0,0.32606281]
[1737210190288,0.0007311,104370.0,104360.0,0.226822]
[1737210192579,0.19068677,104370.0,104360.0,0.131]
[1737210192760,0.19164704,104370.0,104360.0,0.0825]
[1737210193734,0.19164704,104370.0,104350.0,0.145024]
[1737210193735,0.095822,104360.0,104350.0,0.1311]
[1737210193942,0.57397477,104370.0,104350.0,0.418589]
[1737210195702,0.47815177,104370.0,104350.0,0.418589]
[1737210195903,0.095822,104360.0,104350.0,0.226928]
[1737210196102,0.19092594,104360.0,104350.0,0.1311]
[1737210196229,0.19092594,104360.0,104350.0,0.0819]
[1737210196772,0.29016675,104360.0,104350.0,0.0819]
[1737210196975,0.095831,104350.0,104340.0,0.21994]
[1737210197328,0.38504148,104360.0,104340.0,0.411616]
[1737210197329,0.76835748,104360.0,104340.0,0.411616]
[1737210197527,0.86418648,104360.0,104340.0,0.411616]
[1737210197698,0.095822,104360.0,104350.0,0.171328]
[1737210197901,0.76561077,104370.0,104350.0,0.362988]
[1737210198051,0.77070791,104370.0,104350.0,0.362988]
[1737210198260,0.095822,104360.0,104350.0,0.362988]
[1737210198867,0.19092594,104360.0,104350.0,0.0755]
[1737210199421,0.09678227,104360.0,104350.0,0.0755]
[1737210200220,0.095822,104360.0,104350.0,0.0755]
[1737210202110,0.09678227,104360.0,104350.0,0.0755]
[1737210203709,0.095822,104360.0,104350.0,0.0755]
[1737210204692,0.57905791,104370.0,104350.0,0.171331]
[1737210204893,0.0965441,104370.0,104360.0,0.219922]
[1737210205369,0.0007311,104370.0,104360.0,0.219922]
[1737210206468,0.0007311,104370.0,104360.0,0.46916281]
[1737210206675,0.0007311,104370.0,104360.0,0.56330648]
[1737210207236,0.0007311,104370.0,104360.0,0.66330648]
[1737210207445,0.0007311,104370.0,104360.0,0.69282806]
[1737210207672,0.0007711,104370.0,104360.0,0.56330648]
[1737210207867,0.0007711,104370.0,104360.0,0.66330648]
[1737210208067,0.0007711,104370.0,104360.0,0.69282802]
[1737210208296,0.0007711,104370.0,104360.0,0.66330648]
[1737210208993,0.0007711,104370.0,104360.0,0.56916281]
[1737210209194,0.0007711,104370.0,104360.0,0.48808115]
[1737210209356,0.0007711,104370.0,104360.0,0.46916281]
[1737210210458,0.0007711,104370.0,104360.0,0.47872729]
[1737210211881,0.0007711,104370.0,104360.0,0.46916281]
[1737210212082,0.0007711,104370.0,104360.0,0.369922]
[1737210214726,0.0007711,104370.0,104360.0,0.219922]
[1737210217183,0.0007711,104370.0,104360.0,0.31916281]
[1737210218126,0.0007711,104370.0,104360.0,0.56330648]
[1737210218329,0.0007711,104370.0,104360.0,0.66330648]
[1737210218541,0.0007711,104370.0,104360.0,0.76330648]
[1737210218849,0.0007711,104370.0,104360.0,0.86309015]
[1737210219058,0.0007711,104370.0,104360.0,0.97685106]
[1737210219197,0.0156688,104380.0,104370.0,0.2]
[1737210219399,0.0157191,104380.0,104370.0,0.61915426]
[1737210219597,0.0157191,104380.0,104370.0,0.61819648]
[1737210220376,0.0008275,104390.0,104380.0,0.574803]
[1737210220580,0.38696687,104410.0,104400.0,0.374785]
[1737210220778,0.38701717,104410.0,104400.0,0.66816948]
[1737210220991,5.03e-05,104410.0,104400.0,0.66816948]
[1737210221175,5.03e-05,104410.0,104400.0,0.57402581]
[1737210221724,5.03e-05,104410.0,104400.0,0.66816948]
[1737210222300,5.03e-05,104410.0,104400.0,0.57402581]
[1737210223671,5.03e-05,104410.0,104400.0,0.47402581]
[1737210223853,5.03e-05,104410.0,104400.0,0.57402581]
[1737210224386,5.03e-05,104410.0,104400.0,0.47402581]
[1737210227419,5.03e-05,104410.0,104400.0,0.374785]
[1737210229064,5.03e-05,104410.0,104400.0,0.326085]
[1737210229267,0.0004784,104410.0,104400.0,0.326085]
[1737210230349,0.0004784,104410.0,104400.0,0.176085]
[1737210230521,0.0004784,104410.0,104400.0,0.095785]
[1737210230741,0.0962544,104410.0,104400.0,0.095785]
[1737210231183,0.0962544,104410.0,104400.0,0.71791088]
[1737210231184,0.0004784,104410.0,104400.0,0.71791088]
[1737210231384,0.0004784,104410.0,104400.0,0.90524115]
[1737210231974,0.0004784,104410.0,104400.0,0.81109748]
[1737210232949,0.0004784,104410.0,104400.0,1.50218769]
[1737210233132,4e-07,104410.0,104400.0,1.50218769]
[1737210233528,0.0610282,104430.0,104420.0,0.277667]
[1737210233754,0.0004282,104440.0,104430.0,0.377657]
[1737210233958,0.0004282,104440.0,104430.0,0.62278148]
[1737210234539,0.0004282,104440.0,104430.0,0.52278148]
[1737210234761,0.0004282,104440.0,104430.0,0.42299781]
[1737210234969,0.0004282,104440.0,104430.0,0.61714148]
[1737210235615,0.0004282,104440.0,104430.0,0.51714148]
[1737210235834,0.0004282,104440.0,104430.0,0.32299781]
[1737210236316,0.0004282,104440.0,104430.0,0.42299781]
[1737210237564,0.0004282,104440.0,104430.0,0.177657]
[1737210237990,0.0004282,104440.0,104430.0,0.245757]
[1737210240126,0.0004282,104440.0,104430.0,0.34499781]
[1737210240371,0.0004282,104440.0,104430.0,0.56714148]
[1737210240767,0.0004282,104440.0,104430.0,0.66714148]
[1737210242391,0.0004282,104440.0,104430.0,0.57299781]
[1737210242956,0.0004282,104440.0,104430.0,0.66714148]
[1737210243964,0.0004282,104440.0,104430.0,0.47299781]
[1737210244376,0.0004282,104440.0,104430.0,0.57299781]
[1737210244555,0.0004282,104440.0,104430.0,0.47299781]
[1737210244753,0.0004282,104440.0,104430.0,0.57299781]
[1737210245276,0.0004282,104440.0,104430.0,0.47299781]
[1737210246237,0.0004282,104440.0,104430.0,0.42689781]
[1737210247068,0.0004282,104440.0,104430.0,0.52104148]
[1737210247780,0.0004282,104440.0,104430.0,0.42689781]
[1737210248390,0.0004282,104440.0,104430.0,0.52104148]
[1737210249447,0.0004282,104440.0,104430.0,0.42689781]
[1737210249618,0.0004282,104440.0,104430.0,0.327657]
[1737210251020,0.0004282,104440.0,104430.0,0.245757]
[1737210251427,0.0004282,104440.0,104430.0,0.095757]
[1737210251845,0.0961762,104440.0,104430.0,0.095757]
[1737210252055,0.38278714,104440.0,104420.0,0.4788]
[1737210252255,0.38182687,104440.0,104420.0,0.383039]
[1737210252472,0.40482687,104440.0,104420.0,0.57456]
[1737210252677,0.29620547,104430.0,104410.0,0.464985]
[1737210252881,0.29620547,104430.0,104420.0,0.095767]
[1737210254188,0.10468747,104430.0,104420.0,0.095767]
[1737210254423,0.095757,104430.0,104420.0,0.095767]
[1737210255071,0.79133668,104440.0,104420.0,0.287296]
[1737210255269,0.095758,104430.0,104420.0,0.095767]
[1737210255452,0.362376,104430.0,104420.0,0.095767]
[1737210255651,0.553899,104430.0,104410.0,0.67044129]
[1737210255971,0.095757,104430.0,104420.0,0.287287]
[1737210256305,0.67654001,104440.0,104420.0,0.478812]
[1737210256507,0.095757,104430.0,104410.0,0.19158929]
[1737210256711,0.287276,104430.0,104420.0,0.095767]
[1737210256922,0.478799,104430.0,104410.0,0.67044029]
[1737210257128,0.38141967,104430.0,104420.0,0.095767]
[1737210257332,0.287276,104430.0,104420.0,0.095767]
[1737210258388,0.86643568,104440.0,104420.0,0.478826]
[1737210258498,0.095757,104430.0,104420.0,0.287293]
[1737210260303,0.96219168,104440.0,104420.0,0.478826]
[1737210261136,0.095767,104420.0,104410.0,5.029e-05]
[1737210261305,0.19087094,104420.0,104410.0,5.029e-05]
[1737210261879,0.29011175,104420.0,104410.0,5.029e-05]
[1737210262080,0.31215148,104420.0,104410.0,5.029e-05]
[1737210262293,0.48725148,104420.0,104410.0,5.029e-05]
[1737210262881,0.49289148,104420.0,104410.0,5.029e-05]
[1737210263867,0.53889148,104420.0,104410.0,5.029e-05]
[1737210264698,0.68303515,104420.0,104410.0,5.029e-05]
[1737210265101,0.78303515,104420.0,104410.0,5.029e-05]
[1737210265832,0.59474781,104420.0,104410.0,5.029e-05]
[1737210266047,0.78303515,104420.0,104410.0,5.029e-05]
[1737210266506,1.00783023,104420.0,104410.0,5.029e-05]
[1737210266713,1.10707104,104420.0,104410.0,0.00094867]
[1737210268817,0.79205427,104420.0,104410.0,0.00094867]
[1737210269571,1.00707104,104420.0,104410.0,0.00094867]
[1737210270398,0.89068656,104420.0,104410.0,0.00094867]
[1737210270618,0.79068656,104420.0,104410.0,0.00094867]
[1737210271104,0.76168939,104420.0,104410.0,0.00094867]
[1737210271710,0.78468939,104420.0,104410.0,0.00094867]
[1737210271912,0.69302979,104420.0,104410.0,0.00094867]
[1737210272140,0.69866979,104420.0,104410.0,0.00094867]
[1737210272325,0.23342612,104420.0,104410.0,0.00094867]
[1737210272523,0.32756979,104420.0,104410.0,0.00094867]
[1737210273011,0.47756979,104420.0,104410.0,0.00094867]
[1737210275469,0.57192979,104420.0,104410.0,0.00094867]
[1737210275683,0.57756979,104420.0,104410.0,0.00094867]
[1737210276090,0.57192979,104420.0,104410.0,0.00094867]
[1737210276361,0.57756979,104420.0,104410.0,0.00094867]
[1737210278060,0.57192979,104420.0,104410.0,0.00094867]
[1737210278277,0.20478612,104420.0,104410.0,0.07934867]
[1737210278484,0.28915148,104420.0,104410.0,0.07934867]
[1737210278670,0.31215148,104420.0,104410.0,0.07934867]
[1737210278856,0.28915148,104420.0,104410.0,0.07934867]
[1737210279417,0.31215148,104420.0,104410.0,0.07934867]
[1737210280429,0.41215148,104420.0,104410.0,0.00094867]
[1737210282441,0.56139229,104420.0,104410.0,0.00094867]
[1737210282648,0.46215148,104420.0,104410.0,0.00094867]
[1737210283513,0.389785,104400.0,104390.0,0.00089859]
[1737210283698,0.58888948,104400.0,104390.0,0.00094889]
[1737210284293,0.68303315,104400.0,104390.0,0.00094889]
[1737210287217,0.68125298,104400.0,104390.0,0.00094889]
[1737210288477,0.70051965,104400.0,104390.0,0.00094889]
[1737210290101,0.75488324,104400.0,104390.0,0.00094889]
[1737210290228,1.15488324,104400.0,104390.0,0.00094889]
[1737210292133,1.17965642,104400.0,104390.0,0.00094889]
[1737210292517,1.18008432,104400.0,104390.0,0.00094889]
[1737210293298,0.82572073,104400.0,104390.0,0.00094889]
[1737210295949,0.82000073,104400.0,104390.0,0.00094889]
[1737210296187,0.82572073,104400.0,104390.0,0.00094889]
[1737210296385,0.70472073,104400.0,104390.0,0.00094889]
[1737210296967,0.69900073,104400.0,104390.0,0.00094889]
[1737210297328,0.70472073,104400.0,104390.0,0.00094889]
[1737210297511,0.80396154,104400.0,104390.0,0.00094889]
[1737210299368,0.70472073,104400.0,104390.0,0.00094889]
[1737210302521,1.00472073,104400.0,104390.0,0.00094889]
[1737210302723,1.00472073,104400.0,104390.0,8.9e-07]
[1737210302927,0.98403573,104400.0,104360.0,0.1264]
[1737210303128,0.21295567,104370.0,104360.0,0.1264503]
[1737210303328,0.31887675,104370.0,104360.0,0.1264503]
[1737210303577,0.51206015,104370.0,104360.0,0.0787503]
[1737210303785,0.51206015,104370.0,104360.0,5.03e-05]
[1737210304196,0.66130096,104370.0,104360.0,5.03e-05]
[1737210304533,0.46791648,104370.0,104360.0,5.03e-05]
[1737210306844,0.68336015,104370.0,104360.0,5.03e-05]
[1737210307045,0.268822,104360.0,104350.0,0.00089901]
[1737210307390,0.55635015,104360.0,104350.0,0.00089901]
[1737210307534,0.65559096,104360.0,104350.0,0.00089901]
[1737210308174,0.95559096,104360.0,104350.0,0.00089901]
[1737210308719,1.05559096,104360.0,104350.0,1e-08]
[1737210308921,0.65559096,104360.0,104350.0,1e-08]
[1737210309064,0.73069096,104360.0,104350.0,1e-08]
[1737210309506,0.81671056,104360.0,104350.0,1e-08]
[1737210309912,0.83588957,104360.0,104350.0,1e-08]
[1737210310640,1.03664876,104360.0,104350.0,1e-08]
[1737210311079,1.34323689,104360.0,104350.0,1e-08]
[1737210312039,1.33751689,104360.0,104350.0,1e-08]
[1737210312350,0.95634916,104360.0,104350.0,1e-08]
[1737210313379,1.04197159,104360.0,104350.0,1e-08]
[1737210313687,1.1412124,104360.0,104350.0,1e-08]
[1737210315828,1.15620702,104360.0,104350.0,1e-08]
[1737210316197,0.75696621,104360.0,104350.0,1e-08]
[1737210316533,0.98186621,104360.0,104350.0,1e-08]
[1737210316690,0.96687159,104360.0,104350.0,1e-08]
[1737210316905,0.88124916,104360.0,104350.0,1e-08]
[1737210317104,0.87552916,104360.0,104350.0,1e-08]
[1737210317300,0.98048997,104360.0,104350.0,1e-08]
[1737210318275,0.97476997,104360.0,104350.0,1e-08]
[1737210318506,0.98048997,104360.0,104350.0,1e-08]
[1737210318635,0.26884,104340.0,104330.0,0.00089922]
[1737210318844,0.46222448,104340.0,104330.0,0.00089922]
[1737210319448,0.55636815,104340.0,104330.0,0.00089922]
[1737210319883,0.46222448,104340.0,104330.0,0.00089922]
[1737210321488,0.47214567,104340.0,104330.0,0.00089922]
[1737210322139,0.57138648,104340.0,104330.0,0.00089922]
[1737210322289,0.57710648,104340.0,104330.0,0.00089922]
[1737210322690,0.47214567,104340.0,104330.0,0.00089922]
[1737210322973,0.47786567,104340.0,104330.0,0.00089922]
[1737210325028,0.47214567,104340.0,104330.0,0.00089922]
[1737210325234,0.47790567,104340.0,104330.0,0.00089922]
[1737210326594,0.57790567,104340.0,104330.0,0.12969922]
[1737210326796,0.57214567,104340.0,104330.0,0.12969922]
[1737210326990,0.57790567,104340.0,104330.0,0.12969922]
[1737210327572,0.44914567,104340.0,104330.0,0.12969922]
[1737210328407,0.355002,104340.0,104330.0,0.12969922]
[1737210328629,0.44914567,104340.0,104330.0,0.12969922]
[1737210330258,0.47214567,104340.0,104330.0,0.12969922]
[1737210330461,0.57138648,104340.0,104330.0,0.12969922]
[1737210330662,0.47214567,104340.0,104330.0,0.12969922]
[1737210331482,0.57214567,104340.0,104330.0,0.12969922]
[1737210331656,0.58713931,104340.0,104330.0,0.12969922]
[1737210331852,1.10158298,104340.0,104330.0,2.2e-07]